Cogmind - Beta 17.1 @@@ ROGUE MODE // 2026.09.19 @ 04:02:42 Player: MORONI274 Result: Destroyed by PZ-TMS(R) with Subdweller Machine Gun Performance ------------- Evolutions (0) 0 Regions Visited (2) 400 Robots Destroyed (16) 80 Value Destroyed (352) 352 Prototype IDs (0) 0 Alien Tech Used (0) 0 Bonus (0) 0 TOTAL SCORE: 832 Bonus ------- None Cogmind --------- Core Integrity 0/250 Matter 26/300 Energy 125/125 System Corruption 0% Temperature Cool (0) Movement Rolling (110) Location -10/Subcaves Parts ------- > --- POWER (1) -------- Light Ion Engine > --- PROPULSION (2) --- Light Treads Subdweller Monowheel > --- UTILITY (2) ------ Visual Processing Unit Light Armor Plating > --- WEAPON (2) ------- Subdweller Machine Gun > --- INVENTORY (5) ---- Ion Engine Wheel Medium Storage Unit Medium Matter Pod (0) Visual Processing Unit Peak State ------------ > --- POWER ------------ Light Ion Engine > --- PROPULSION ------- Light Treads Subdweller Monowheel > --- UTILITY ---------- Medium Storage Unit Visual Processing Unit > --- WEAPON ----------- Subdweller Machine Gun Grenade Launcher > --- INVENTORY -------- Ion Engine Wheel Medium Storage Unit Medium Matter Pod Visual Processing Unit Terrain Scanner Light Armor Plating Subdweller Laser Light Cannon [Rating: 11] Favorites ----------- Power Light Ion Engine Engine Light Ion Engine Propulsion Light Treads Treads Light Treads Wheel Subdweller Monowheel Utility Medium Storage Unit Device Terrain Scanner Storage Medium Storage Unit Processor Visual Processing Unit Protection Light Armor Plating Weapon Light Cannon Energy Gun Medium Laser Ballistic Gun Assault Rifle Ballistic Cannon Light Cannon Launcher Grenade Launcher Build | -11 -10 -10 ------- Run | Yrd Mat Sub Slots Evolved . | . . . Power . | . . . Propulsion . | . . . Utility . | . . . Weapon . | . . . Parts Attached 15 | 6 6 3 Power 2 | 1 1 . Engine 2 | 1 1 . Core . | . . . Reactor . | . . . Propulsion 3 | 2 . 1 Treads 2 | 2 . . Leg . | . . . Wheel 1 | . . 1 Hover . | . . . Flight . | . . . Utility 5 | 1 3 1 Device 1 | . 1 . Storage 2 | 1 1 . Processor 1 | . . 1 Hackware . | . . . Protection 1 | . 1 . Artifact . | . . . Weapon 5 | 2 2 1 Energy Gun 1 | 1 . . Energy Cannon . | . . . Ballistic Gun 2 | 1 . 1 Ballistic Cannon 1 | . 1 . Launcher 1 | . 1 . Special Weapon . | . . . Impact Weapon . | . . . Slashing Weapon . | . . . Piercing Weapon . | . . . Special Melee Weapon . | . . . Unidentified Prototypes . | . . . Parts Lost 4 | . . 4 Power 1 | . . 1 Propulsion 1 | . . 1 Utility . | . . . Weapon 2 | . . 2 Highest Loss Streak 1 | . . 1 To Critical Strikes . | . . . Average Backups 8 | 2 8 9 Power 1 | . 1 1 Propulsion 2 | 2 3 1 Utility 3 | . 2 4 Weapon 1 | . . 1 Tool/Special . | . . . Unused Backups 11 | . 4 7 Power 1 | . . 1 Propulsion 6 | . 4 2 Utility 3 | . . 3 Weapon 1 | . . 1 Tool/Special . | . . . Average Slot Usage (%) 97 | . 95 99 Engine 14 | . 14 14 Treads 27 | . 28 27 Device 5 | . 3 7 Storage 14 | . 14 13 Processor 3 | . . 5 Protection 3 | . 6 1 Ballistic Gun 12 | . 14 12 Ballistic Cannon 12 | . 11 13 Launcher 1 | . . 1 Peak Build Rating 11 | 6 8 11 Average Rating 7 | 4 7 8 On Entrance 4 | . 6 8 Avg Prop Armor Cover (%) 12 | . . 12 Naked Turns . | . . . Heaviest Build 25 | 12 25 22 Greatest Support 40 | 40 40 40 Greatest Overweight (x) . | . . . Average Overweight (x) . | . . . Largest Inventory Capacity 10 | 8 10 10 Average Capacity 9 | 6 9 9 Most Carried 10 | 5 10 10 Average Carried 9 | 2 8 9 Final Capacity 10 | 8 10 5 Final Carried 10 | 5 10 5 Class Distribution -------------------- 100% | Mutant Dominant Class ---------------- Mutant | -10/Materials Mutant | -10/Subcaves Resources | -11 -10 -10 ----------- Run | Yrd Mat Sub Matter Collected 475 | 219 144 112 Remotely . | . . . Salvage Created 281 | . 144 137 Parts 31 | . 17 14 Haulers Intercepted . | . . . Recyclers Shooed . | . . . Parts Field Recycled . | . . . Retrieved Matter . | . . . Parts Self-Destructed 5 | . . 5 Prevented . | . . . Parts Restored . | . . . Kills | -11 -10 -10 ------- Run | Yrd Mat Sub Combat Hostiles Destroyed 12 | . 4 8 Guns 4 | . 2 2 Cannons 6 | . 1 5 AOE 2 | . 1 1 Classes Destroyed 5 | . 4 1 Worker 2 | . 2 . Watcher 2 | . 2 . Swarmer 5 | . 2 3 Grunt 2 | . 2 . Subdweller 5 | . . 5 Best Kill Streak 6 | . 6 3 Combat Bots Only 4 | . 4 3 Max Kills in Single Turn 2 | . 2 1 Gunslinging . | . . . Exploded 1 | . 1 1 Melee . | . . . Uniques/NPCs Destroyed . | . . . Combat | -11 -10 -10 -------- Run | Yrd Mat Sub Hostile Shots Fired 83 | . 16 67 Missed 29 | . 7 22 Hits 54 | . 9 45 Projectile 54 | . 9 45 Critical Strikes 3 | . . 3 Damage Taken 975 | . 76 899 Core 255 | . 13 242 Absorbed by Shields . | . . . Core Remaining (%) 100 | 100 . . Volleys Fired 50 | . 9 41 Largest 2 | . 2 2 Hottest 60 | . 50 60 Shots Fired 81 | . 18 63 Gun 32 | . 9 23 Cannon 38 | . 6 32 Launcher 11 | . 3 8 Special . | . . . Kinetic 70 | . 15 55 Thermal . | . . . Explosive 11 | . 3 8 Electromagnetic . | . . . Robot Hit Streak 9 | . 4 9 Robot Miss Streak 5 | . 5 3 Penetration Max . | . . . Secondary Targets . | . . . Shots Hit Robots 50 | . 8 42 Core Hits 24 | . 9 15 Critical Kills . | . . . Critical Parts Destroyed . | . . . Critical Strikes 2 | . . 2 Blast 2 | . . 2 Melee Attacks . | . . . Impact . | . . . Slashing . | . . . Piercing . | . . . Sneak Attacks . | . . . Combat Hostiles . | . . . Follow-up Attacks . | . . . Damage Inflicted 1148 | . 283 865 Guns 331 | . 71 260 Cannons 429 | . 40 389 Explosions 388 | . 172 216 Melee . | . . . Ramming . | . . . Kinetic 760 | . 111 649 Thermal . | . . . Explosive 388 | . 172 216 Electromagnetic . | . . . Impact . | . . . Slashing . | . . . Piercing . | . . . Highest Corruption . | . . . Average Corruption . | . . . Corruption Purged . | . . . Corruption Blocked . | . . . Overload Shots . | . . . Overflow Damage 7 | . . 7 Projectiles . | . . . Explosions 7 | . . 7 Melee . | . . . Knockbacks 6 | . 1 5 Impact . | . . . Kinetic 6 | . 1 5 Secondary . | . . . Self-Inflicted Damage 46 | . . 46 Shots 2 | . . 2 Rammed . | . . . Targets Rammed . | . . . Kicked . | . . . Crushed . | . . . Highest Temperature 2 | . 2 . Average Temperature 2 | . 2 . Received Heat Transfer 141 | . 12 129 Siege Activations . | . . . Martial Activations . | . . . Shielding Activations . | . . . Robots Disrupted . | . . . Combat Hostiles . | . . . Robots Corrupted . | . . . Combat Hostiles . | . . . Parts Fried . | . . . Impact Corruptions . | . . . Robots Melted . | . . . Combat Hostiles . | . . . Parts Melted . | . . . Heat Transferred . | . . . Parts Sabotaged . | . . . Parts Stolen . | . . . Parts Stripped . | . . . Power Chain Reactions . | . . . Alert | -11 -10 -10 ------- Run | Yrd Mat Sub Maximum Alert Level . | . . . Low Security (%) 100 | 100 100 . Level 1 . | . . . Level 2 . | . . . Level 3 . | . . . Level 4 . | . . . Level 5 . | . . . High Security . | . . . Max Security . | . . . Peak Influence 102 | . 102 . Initial . | . . . Average 30 | . 35 . Influence Increases 227 | . 157 70 Destroy 0b10 Robot/C 140 | . 80 60 Destroy 0b10 Robot/NC 20 | . 20 . Destroy Leader 24 | . 14 10 Destroy Structure 13 | . 13 . Lose Combat Pursuer 30 | . 30 . Influence Decreases 227 | . 157 70 Time Decay 227 | . 157 70 Squads Dispatched 1 | . 1 . Investigation 1 | . 1 . Extermination . | . . . Reinforcement . | . . . Assault . | . . . Garrison . | . . . Intercept . | . . . Searches Triggered . | . . . Construction Impeded . | . . . Haulers Reinforced . | . . . Active Scanning Responses . | . . . Cargo Convoy Interrupts . | . . . Stealth | -11 -10 -10 --------- Run | Yrd Mat Sub Distress Signals 2 | . 2 . Communications Jammed . | . . . Distress Signals . | . . . Times Spotted 21 | . 12 9 Peak Tracking Total 5 | . 5 3 Tactical Retreats 1 | . 1 . Traps | -11 -10 -10 ------- Run | Yrd Mat Sub Traps Triggered 1 | . 1 . Indirectly . | . . . Trap Hack Attempts . | . . . Triggered . | . . . Disarmed . | . . . Reprogrammed . | . . . Reused . | . . . Traps Extracted . | . . . Installed . | . . . Triggered . | . . . Machines | -11 -10 -10 ---------- Run | Yrd Mat Sub Machines Disabled . | . . . Max in Single Turn . | . . . Machines Repaired . | . . . Machines Dismantled . | . . . Machines Sabotaged . | . . . Overloaded Fab Kills . | . . . Hacking | -11 -10 -10 --------- Run | Yrd Mat Sub Machines Accessed 2 | . 1 1 Terminals 1 | . 1 . Fabricators . | . . . Repair Stations . | . . . Recycling Units . | . . . Scanalyzers . | . . . Garrison Access . | . . . Total Hacks 5 | . 1 4 Successful 5 | . 1 4 Failed . | . . . Catastrophic . | . . . Database Lockouts . | . . . Manual . | . . . Terminals 1 | . 1 . Fabricators . | . . . Repair Stations . | . . . Recycling Units . | . . . Scanalyzers . | . . . Garrison Access . | . . . Terminal Hacks 5 | . 1 4 Record 5 | . 1 4 Fabricator Hacks . | . . . Repair Station Hacks . | . . . Recycling Unit Hacks . | . . . Scanalyzer . | . . . Garrison Access Hacks . | . . . Unauthorized Hacks . | . . . Terminals . | . . . Fabricators . | . . . Repair Stations . | . . . Recycling Units . | . . . Scanalyzers . | . . . Garrison Access . | . . . Data Cores Recovered . | . . . Used . | . . . Hacking Detections . | . . . Full Trace Events . | . . . Feedback Events . | . . . Feedback Blocked . | . . . Robot Schematics Acquired . | . . . Robots Built . | . . . Authchips . | . . . Time . | . . . Total Robot Build Rating . | . . . Part Schematics Acquired . | . . . Parts Built . | . . . Authchips . | . . . Time . | . . . Total Part Build Rating . | . . . Part Studies Acquired . | . . . Parts Repaired . | . . . Time . | . . . Parts Recycled . | . . . Recycled Matter . | . . . Retrieved Matter . | . . . Retrieved Components . | . . . Parts Scanalyzed . | . . . Part Schematics Acquired . | . . . Parts Damaged . | . . . Bothacking | -11 -10 -10 ------------ Run | Yrd Mat Sub Used RIF Installer . | . . . Robots Hacked . | . . . Non-combat . | . . . Combat . | . . . Robot Hacks Applied . | . . . Relay Couplers Released . | . . . Fabnet Peak Effective % . | . . . Robots Rewired . | . . . Allies Hacked . | . . . Hacks Repelled . | . . . Allies | -11 -10 -10 -------- Run | Yrd Mat Sub Total Allies . | . . . Largest Group . | . . . Highest-Rated Group . | . . . Highest-Rated Ally . | . . . Total Orders . | . . . Ally Attacks . | . . . Total Damage . | . . . Kills . | . . . Allies Corrupted . | . . . Allies Melted . | . . . Intel | -11 -10 -10 ------- Run | Yrd Mat Sub Active Infowar (turns) 984 | . 123 861 Optics 355 | . . 355 Terrain 629 | . 123 506 Robot Analysis Total . | . . . Derelict Logs Recovered . | . . . Drone Launches . | . . . Drone Recoveries . | . . . Exploration | -11 -10 -10 ------------- Run | Yrd Mat Sub Turns Passed 1592 | 88 552 952 Spaces Moved 766 | 49 237 480 Core 3 | 3 . . Treads 737 | 46 237 454 Legs . | . . . Wheels 26 | . . 26 Hover . | . . . Flight . | . . . Fastest Speed 50 | 50 160 110 Average Speed 157 | 153 160 157 Slowest Speed 160 | 160 160 160 Overloaded Moves . | . . . Propulsion Burnouts . | . . . Robots Hopped . | . . . Potential Cave-ins . | . . . Cave-ins Triggered . | . . . Exploration Rate (%) 19 | 3 28 26 Regions Visited 2 Branch Regions 1 Pre-discovered Areas . | . . . Known Exits Taken . | . . . Unknown Exits Taken 2 | 1 1 . Scrap Searched . | . . . Spaces Dug . | . . . Terrain Destroyed 46 | . 11 35 Melee . | . . . Projectile . | . . . AOE 46 | . 11 35 Terrain Rammed . | . . . Walls Destroyed . | . . . Machines Disabled . | . . . Actions | -11 -10 -10 --------- Run | Yrd Mat Sub Total 1068 | 59 394 615 Wait 200 | . 124 76 Move 764 | 48 236 480 Hop . | . . . Pick Up 20 | 5 10 5 Fast Attach 9 | 6 2 1 Attach 4 | . 1 3 Detach 1 | . 1 . Swap 9 | . 4 5 Drop 11 | . 7 4 Fire 50 | . 9 41 Melee . | . . . Ram . | . . . Kick . | . . . Crush . | . . . Escape Stasis . | . . . Rewire . | . . . Trap . | . . . Miscellaneous . | . . . Route ------- -11/Scrapyard -10/Materials -10/Subcaves History --------- Turn | Location | Event 8 | -11/Scrapyard | Discovered new exit (range 16) 89 | -11/Scrapyard | Entered Materials 307 | -10/Materials | Build established: Mutant 631 | -10/Materials | Discovered new exit (range 5) 641 | -10/Materials | Entered Subcaves 1381 | -10/Subcaves | Visited Clippyterm 1386 | -10/Subcaves | Learned Factory trap positions 1386 | -10/Subcaves | Learned Research machine intel 1494 | -10/Subcaves | A swath of the cavern ceiling suddenly collapsed 1534 | -10/Subcaves | Core integrity fell below 50% 1580 | -10/Subcaves | Core integrity fell below 20% 1593 | -10/Subcaves | Destroyed by PZ-TMS(R) with Subdweller Machine Gun Last Messages --------------- Data stored: Factory trap records. >>Record! "Procgen" It looks like you're analyzing machine distribution algorithms, I have access to useful relevant data. Data stored: Research machine intel. >>Record! "LRC-V1" It looks like you're REDACTED, I can suggest REDACTED and REDACTED. Also definitely avoid REDACTED. 01439_ Acquired 3 matter. A swath of the cavern ceiling suddenly collapses. 01533_ Lgt. Treads destroyed. 01533_ Destroyed Lgt. Treads. 01540_ The unstable cave ceiling collapses. 01585_ Lgt. Cannon destroyed. 01585_ V3-A8A(R) destroyed. 01593_ Subatomizers dissect the Grenade Launcher. Map ----- +----------------------------------------------------+ | ???????????????????????? ??#####????#??##??# | | ??????????????????????????" #????##????#???## | | ?????????????????????????? #???????????????## | | ????????????????????????? ##?????????##????## | | ????????????????###?##### #???????????????### | | ???????????????## ### #????????#???????# | | ???????????????# #????????#?#?????## # | | ??????????##???# "##??????????#??#???# | | ?????????## #### ##?????#??????#????## # | | ?????????# ## ##?????#???#?????#?## | | ?????????# # ##??????????????????## | | ????????## ### "###??????????????????## | | ????????# ##??##"""#??????????????#????# | | ????????# ##????"##"#???????????????????# | | ????????### ##?????" ###???????????????????#### | | ??????????## #??????"#???????????##?????#??????# | | ??????????## #??????#???????????????????????#??# | | ??????????# ######???????????????????????????# | | ?????????## ##???##?????????????????????## | | ?????????# ### #????????????#???????#?? | | ?????????## #?????????????????#???## | | ??????????## ##?????????????#?#??????? | | ???????????# #####????????????????##??# | | ??????????## ########! #???????????????## ??? | | ??????????# #######][ #?????????????#?# ??? | | ??????????# [%& @ #?????#?????????? ### | | ??????????# &R ##????????????????# | | ?###??????#### ###???????????????? # | | ?# ##???????# #??####?####???## | | ## ##??????# ##### #### #??# ### ####?# | | # ##?????# #???####??# ### #??# | | ?# ####### #??????????# ##?# | | ??# # # # ###???#??????# ### | | ?## ##????????????# | | ?# # ##???????????## | | ?# & & #?????###????## | | ?## # ##????## #?###?### ##### # | | ??## #### &###??#?## ### ###?# #??### ## # | | ?### ## #???## ## ### #?#??###### # | | ## # #??## ### ##???###??## | | # #####" ###??## # ###???## #?## | | ## #??## # #??## " ##?????# ## | | ## ##?# #??# "" #####??????# | | #?# #### # # ###??#???????## | | ### ## #####????????????### | | #### #?????#????????????## | | ##??#### #???????????????????# | | #??????# #????????? ""####?# | | #??##### #######????????? " # | | & #?? ###????????????????? "" # | +----------------------------------------------------+ Best States ------------- Heat Dissipation 25 Energy Generation 10 Energy Capacity 250 Matter Stores 262 Matter Capacity 300 Sight Range 18 Terrain Scan Range 14 Terrain Scan Density 10 Armor Coverage 150 Evasion (%) 40 Recoil Reduction 2 Item Schematics ----------------- None Robot Schematics ------------------ None Fabricated ------------ Nothing Repaired ---------- Nothing Studied --------- None Alien Tech Used ----------------- None Achievements -------------- None Challenges ------------ None Game ------ Seed LargeTransmissionMantle Manual? 0 Play Time 00:15:34 Cumulative 20.2 hours Start 2026.09.19 @ 03:52:33 End 2026.09.19 @ 04:02:42 Sessions 1 Manual Loads 0 Difficulty Rogue Special Mode None Game No. 44 Rogue 44 Adventurer 0 Explorer 0 Win Type - Total 0 Types 0/0/0/0/0/0/0/0/0/0 Lore% 12 Gallery% 20 Achievement% 17 Wizard Run 0 Options --------- Layout 1 ASCII 0 Keyboard 0 Movement Arrows Keybinds 0 Fullscreen 2 Font 24/Smallcaps Map View 50x35 Zoom Use 0% Tactical HUD 1 Map Filters NONE Filters NONE Steam 1 RUN: a5d2486c-f61e-4e73-8d42-2482bc72e525